[Event "WJCC U20 Open 2019"]
[Site "New Delhi"]
[Date "2019.10.21"]
[Round "7.28"]
[White "Miciano, John Marvin"]
[Black "Di Benedetto, Edoardo"]
[Result "0-1"]
[ECO "A08"]
[WhiteElo "2345"]
[BlackElo "2401"]
[Annotator "NA"]
[PlyCount "82"]
[EventDate "2019.10.15"]
[EventType "swiss"]
[EventCountry "IND"]
[SourceTitle "playchess.com"]
[Source "ChessBase"]
[SourceQuality "1"]
[TimeControl "40/5400+30:1800+30"]

1. Nf3 {[%emt 0:00:00]} d5 {[%emt 0:00:00]} 2. g3 c5 {[%emt 0:00:20]} 3. Bg2 {[%emt 0:00:25]} Nc6 {[%emt 0:00:18]} 4. O-O {[%emt 0:01:06]} Nf6 {[%emt 0:00:27]} 5. d3 {[%emt 0:02:54]} Bg4 {[%emt 0:09:50]} 6. c3 {[%emt 0:01:09]} e6 {[%emt 0:00:25]} 7. a3 {[%emt 0:00:55]} a5 {[%emt 0:05:22]} 8. a4 {[%emt 0:03:49]} Be7 {[%emt 0:00:42]} 9. Qb3 {[%emt 0:07:21]} Qd7 {[%emt 0:02:43]} 10. Nbd2 {[%emt 0:01:33]} O-O {[%emt 0:00:28]} 11. Re1 {[%emt 0:00:39]} Rfd8 {[%emt 0:09:45]} 12. h3 {[%emt 0:09:35]} Bh5 {[%emt 0:00:18]} 13. e4 {[%emt 0:04:51]} c4 {[%emt 0:06:56]} 14. dxc4 {[%emt 0:03:52]} dxe4 {[%emt 0:00:34]} 15. Nxe4 {[%emt 0:10:16]} Nxe4 {[%emt 0:00:25]} 16. Rxe4 {[%emt 0:00:07]} Qd1+ {[%emt 0:00:20]} 17. Qxd1 {[%emt 0:00:09]} Rxd1+ {[%emt 0:00:05]} 18. Ne1 {[%emt 0:04:50]} Rad8 {[%emt 0:17:45]} 19. Bf1 {[%emt 0:28:55]} f5 {[%emt 0:00:57]} 20. Rxe6 {[%emt 0:00:07]} Kf7 {[%emt 0:00:06]} 21. Re3 {[%emt 0:00:06]} Bc5 {[%emt 0:00:08]} 22. Nc2 {[%emt 0:00:16]} Bxe3 {[%emt 0:02:07]} 23. Nxe3 {[%emt 0:00:03]} Be2 {[%emt 0:01:46]} 24. Kg2 {[%emt 0:00:29]} Bxf1+ {[%emt 0:03:59]} 25. Nxf1 {[%emt 0:00:03]} g5 {[%emt 0:11:50]} 26. Ne3 {[%emt 0:01:25]} Re1 {[%emt 0:00:10]} 27. Nc2 {[%emt 0:04:47]} Re2 {[%emt 0:00:05]} 28. Ne3 {[%emt 0:00:31]} f4 {[%emt 0:01:50]} 29. gxf4 {[%emt 0:01:17]} gxf4 {[%emt 0:00:09]} 30. Kf3 {[%emt 0:00:08]} Re1 {[%emt 0:01:23]} 31. Kxf4 {[%emt 0:00:15]} Rg8 {[%emt 0:04:17]} 32. Nf5 {[%emt 0:03:19]} Rgg1 {[%emt 0:00:21]} 33. Ra3 {[%emt 0:00:08]} Rxc1 {[%emt 0:00:07]} 34. Rb3 {[%emt 0:00:06]} Nd8 {[%emt 0:00:31]} 35. Nd6+ {[%emt 0:01:07]} Kf6 {[%emt 0:00:18]} 36. Nxb7 {[%emt 0:01:12]} Ne6+ {[%emt 0:00:38]} 37. Ke3 {[%emt 0:01:04]} Rcd1 {[%emt 0:01:20]} 38. h4 {[%emt 0:02:14]} Rge1+ {[%emt 0:00:18]} 39. Kf3 {[%emt 0:00:03]} Rd3+ {[%emt 0:00:11]} 40. Kg2 {[%emt 0:00:17]} Nf4+ {[%emt 0:00:04]} 41. Kh2 {[%emt 0:30:03]} Rh3# {[%emt 0:30:04]} 0-1

[Event "WJCC U20 Open 2019"]
[Site "New Delhi"]
[Date "2019.10.21"]
[Round "7.30"]
[White "Batsuren, Dambasuren"]
[Black "Donoso Diaz, Sebastian"]
[Result "1-0"]
[ECO "D02"]
[WhiteElo "2454"]
[BlackElo "2203"]
[Annotator "ChessBase"]
[PlyCount "75"]
[EventDate "2019.10.15"]
[EventType "swiss"]
[EventCountry "IND"]
[SourceTitle "playchess.com"]
[Source "ChessBase"]
[SourceQuality "1"]
[TimeControl "40/5400+30:1800+30"]

1. d4 {[%emt 0:00:00]} d5 {[%emt 0:00:00]} 2. Nf3 {[%emt 0:00:00]} Nf6 {[%emt 0:00:00]} 3. g3 {[%emt 0:00:00]} b5 {[%emt 0:00:36]} 4. Bg2 {[%emt 0:01:37]} e6 {[%emt 0:00:05]} 5. O-O {[%emt 0:00:13]} Be7 {[%emt 0:02:45]} 6. Qd3 {[%emt 0:09:05]} Ba6 {[%emt 0:08:33]} 7. Ne5 {[%emt 0:02:49]} O-O {[%emt 0:02:57]} 8. a3 {[%emt 0:10:52]} Ne8 {[%emt 0:20:09]} 9. Nd2 {[%emt 0:05:32]} b4 {[%emt 0:09:07]} 10. Qe3 {[%emt 0:06:25]} Nd6 {[%emt 0:10:37]} 11. g4 {[%emt 0:02:09]} bxa3 {[%emt 0:04:59]} 12. b3 {[%emt 0:00:06]} Bb7 {[%emt 0:03:35]} 13. Bxa3 {[%emt 0:00:20]} Nd7 {[%emt 0:01:16]} 14. f4 {[%emt 0:05:04]} Re8 {[%emt 0:02:59]} 15. c4 {[%emt 0:02:24]} Nf8 {[%emt 0:02:11]} 16. Rfc1 {[%emt 0:01:56]} Rb8 {[%emt 0:06:15]} 17. Nd3 {[%emt 0:04:28]} h5 {[%emt 0:04:11]} 18. h3 {[%emt 0:00:57]} Nh7 {[%emt 0:01:11]} 19. Bxd6 {[%emt 0:07:32]} cxd6 {[%emt 0:00:18]} 20. Rxa7 {[%emt 0:00:49]} Bf6 {[%emt 0:01:04]} 21. c5 {[%emt 0:02:59]} hxg4 {[%emt 0:03:06]} 22. hxg4 {[%emt 0:00:27]} dxc5 {[%emt 0:01:03]} 23. dxc5 {[%emt 0:00:39]} Bc6 {[%emt 0:02:30]} 24. g5 {[%emt 0:04:09]} Nxg5 {[%emt 0:01:51]} 25. fxg5 {[%emt 0:00:32]} Bxg5 {[%emt 0:00:04]} 26. Qf2 {[%emt 0:02:50]} f5 {[%emt 0:00:23]} 27. Rd1 {[%emt 0:07:21]} Re7 {[%emt 0:01:50]} 28. Rxe7 {[%emt 0:01:47]} Qxe7 {[%emt 0:00:02]} 29. Nf3 {[%emt 0:01:25]} Bf6 {[%emt 0:00:24]} 30. Nd4 {[%emt 0:06:09]} Bxd4 {[%emt 0:06:06]} 31. Qxd4 {[%emt 0:00:16]} Rxb3 {[%emt 0:00:48]} 32. Ra1 {[%emt 0:00:44]} Qg5 {[%emt 0:00:58]} 33. Qe5 {[%emt 0:02:12]} Qh6 {[%emt 0:00:45]} 34. Nf4 {[%emt 0:00:14]} Kh8 {[%emt 0:01:22]} 35. Nxe6 {[%emt 0:05:56]} Re3 {[%emt 0:00:08]} 36. Qb8+ {[%emt 0:00:14]} Kh7 {[%emt 0:00:04]} 37. Nd4 {[%emt 0:00:26]} Re8 {[%emt 0:01:17]} 38. Qh2 {[%emt 0:00:07]} 1-0

[Event "WJCC U20 Open 2019"]
[Site "New Delhi"]
[Date "2019.10.21"]
[Round "7.31"]
[White "Tica, Sven"]
[Black "Papadiamandis, Elliot"]
[Result "1/2-1/2"]
[ECO "A05"]
[WhiteElo "2418"]
[BlackElo "2190"]
[Annotator "NA"]
[PlyCount "76"]
[EventDate "2019.10.15"]
[EventType "swiss"]
[EventCountry "IND"]
[SourceTitle "playchess.com"]
[Source "ChessBase"]
[SourceQuality "1"]
[TimeControl "40/5400+30:1800+30"]

1. Nf3 {[%emt 0:00:00]} Nf6 {[%emt 0:00:00]} 2. g3 {[%emt 0:00:00]} g6 {[%emt 0:00:00]} 3. b3 {[%emt 0:00:00]} Bg7 {[%emt 0:00:01]} 4. Bb2 {[%emt 0:00:00]} d5 {[%emt 0:00:09]} 5. c4 {[%emt 0:00:07]} dxc4 {[%emt 0:00:41]} 6. bxc4 {[%emt 0:00:06]} c5 {[%emt 0:00:18]} 7. Bg2 {[%emt 0:00:06]} O-O {[%emt 0:00:11]} 8. O-O {[%emt 0:00:06]} Nc6 {[%emt 0:00:21]} 9. d3 {[%emt 0:00:07]} Re8 {[%emt 0:04:37]} 10. Nc3 {[%emt 0:06:49]} Bd7 {[%emt 0:05:30]} 11. Qd2 {[%emt 0:06:04]} Rc8 {[%emt 0:07:45]} 12. Rfd1 {[%emt 0:12:32]} b6 {[%emt 0:07:43]} 13. h3 {[%emt 0:04:33]} Qc7 {[%emt 0:03:41]} 14. e3 {[%emt 0:07:22]} Red8 {[%emt 0:02:30]} 15. Qe2 {[%emt 0:02:51]} Na5 {[%emt 0:03:53]} 16. Rac1 {[%emt 0:03:29]} a6 {[%emt 0:05:12]} 17. e4 {[%emt 0:06:34]} e5 {[%emt 0:09:20]} 18. Nd5 {[%emt 0:03:05]} Nxd5 {[%emt 0:00:36]} 19. exd5 {[%emt 0:00:20]} Re8 {[%emt 0:01:47]} 20. Re1 {[%emt 0:02:02]} f6 {[%emt 0:03:02]} 21. g4 {[%emt 0:06:41]} Re7 {[%emt 0:05:23]} 22. g5 {[%emt 0:00:36]} Rce8 {[%emt 0:03:47]} 23. gxf6 {[%emt 0:02:48]} Bxf6 {[%emt 0:00:13]} 24. Nd2 {[%emt 0:02:45]} Nb7 {[%emt 0:02:17]} 25. Ne4 {[%emt 0:05:45]} Bg7 {[%emt 0:01:18]} 26. Rb1 {[%emt 0:01:07]} Nd6 {[%emt 0:03:51]} 27. Bc1 {[%emt 0:00:15]} Bf5 {[%emt 0:06:38]} 28. Bg5 {[%emt 0:02:37]} Rf7 {[%emt 0:00:20]} 29. Ng3 {[%emt 0:01:21]} Bd7 {[%emt 0:01:18]} 30. Qb2 {[%emt 0:05:07]} b5 {[%emt 0:02:15]} 31. cxb5 {[%emt 0:01:13]} axb5 {[%emt 0:00:41]} 32. Qc2 {[%emt 0:00:40]} Rc8 {[%emt 0:01:28]} 33. Rec1 {[%emt 0:00:25]} c4 {[%emt 0:03:20]} 34. dxc4 {[%emt 0:01:35]} bxc4 {[%emt 0:00:43]} 35. Be3 {[%emt 0:00:47]} Qa5 {[%emt 0:00:49]} 36. Bd2 {[%emt 0:01:31]} Qa7 {[%emt 0:00:30]} 37. Be3 {[%emt 0:00:39]} Qa5 {[%emt 0:00:40]} 38. Bd2 {[%emt 0:03:34]} Qa7 {[%emt 0:00:20]} 1/2-1/2

[Event "WJCC U20 Open 2019"]
[Site "New Delhi"]
[Date "2019.10.21"]
[Round "7.32"]
[White "Dobrovoljc, Vid"]
[Black "Flores Quillas, Diego Saul Rodri"]
[Result "1-0"]
[ECO "B81"]
[WhiteElo "2389"]
[BlackElo "2164"]
[Annotator "NA"]
[PlyCount "113"]
[EventDate "2019.10.15"]
[EventType "swiss"]
[EventCountry "IND"]
[SourceTitle "playchess.com"]
[Source "ChessBase"]
[SourceQuality "1"]
[TimeControl "40/5400+30:1800+30"]

1. e4 {[%emt 0:00:00]} c5 {[%emt 0:00:00]} 2. Nf3 {[%emt 0:00:00]} e6 {[%emt 0:00:00]} 3. d4 {[%emt 0:00:00]} cxd4 {[%emt 0:00:00]} 4. Nxd4 {[%emt 0:00:00]} Nf6 {[%emt 0:00:00]} 5. Nc3 {[%emt 0:00:05]} d6 {[%emt 0:00:03]} 6. g4 {[%emt 0:01:10]} h6 {[%emt 0:00:05]} 7. h4 {[%emt 0:00:39]} Nc6 {[%emt 0:00:20]} 8. Rg1 {[%emt 0:00:31]} d5 {[%emt 0:00:10]} 9. exd5 {[%emt 0:00:26]} Nxd5 {[%emt 0:00:11]} 10. Nxd5 {[%emt 0:00:24]} exd5 {[%emt 0:00:13]} 11. Be3 {[%emt 0:00:18]} Qxh4 {[%emt 0:00:15]} 12. Qe2 {[%emt 0:00:50]} Be7 {[%emt 0:53:03]} 13. O-O-O {[%emt 0:02:36]} O-O {[%emt 0:04:47]} 14. Nf3 {[%emt 0:01:27]} Bxg4 {[%emt 0:02:23]} 15. Nxh4 {[%emt 0:21:55]} Bxe2 {[%emt 0:00:06]} 16. Bxe2 {[%emt 0:03:38]} Bxh4 {[%emt 0:00:18]} 17. Bxh6 {[%emt 0:01:33]} Bf6 {[%emt 0:00:06]} 18. Rxd5 {[%emt 0:01:33]} Rfe8 {[%emt 0:03:06]} 19. Bxg7 {[%emt 0:08:05]} Bxg7 {[%emt 0:00:12]} 20. Rdg5 {[%emt 0:00:09]} Kf8 {[%emt 0:05:27]} 21. Rxg7 {[%emt 0:00:22]} Rxe2 {[%emt 0:07:23]} 22. Rg8+ {[%emt 0:00:56]} Ke7 {[%emt 0:00:05]} 23. Rxa8 {[%emt 0:00:07]} Rxf2 {[%emt 0:00:19]} 24. c3 {[%emt 0:11:26]} Kd7 {[%emt 0:00:40]} 25. Rd1+ {[%emt 0:01:09]} Kc7 {[%emt 0:01:38]} 26. Re8 {[%emt 0:00:16]} a5 {[%emt 0:06:17]} 27. Ree1 {[%emt 0:03:22]} Rh2 {[%emt 0:05:37]} 28. Rf1 {[%emt 0:05:46]} Ne5 {[%emt 0:01:14]} 29. Rd5 {[%emt 0:03:01]} Rh5 {[%emt 0:01:12]} 30. Rxf7+ {[%emt 0:09:57]} Kc6 {[%emt 0:00:37]} 31. Rfd7 {[%emt 0:00:10]} Rh6 {[%emt 0:01:29]} 32. Rxe5 {[%emt 0:03:00]} Kxd7 {[%emt 0:00:03]} 33. Rxa5 {[%emt 0:00:07]} Rh1+ {[%emt 0:00:32]} 34. Kc2 {[%emt 0:00:11]} Kc6 {[%emt 0:00:03]} 35. Rg5 {[%emt 0:00:07]} Rh2+ {[%emt 0:00:10]} 36. Kb3 {[%emt 0:00:05]} Rf2 {[%emt 0:00:08]} 37. Rh5 {[%emt 0:00:17]} Rg2 {[%emt 0:00:27]} 38. a4 {[%emt 0:00:07]} Rf2 {[%emt 0:00:27]} 39. Ka3 {[%emt 0:00:33]} Rc2 {[%emt 0:00:11]} 40. Rh6+ {[%emt 0:00:17]} Kc5 {[%emt 0:00:15]} 41. a5 {[%emt 0:35:23]} Kb5 {[%emt 0:30:04]} 42. Rb6+ {[%emt 0:00:18]} Kxa5 {[%emt 0:00:04]} 43. Rxb7 {[%emt 0:00:06]} Rh2 {[%emt 0:00:32]} 44. b4+ {[%emt 0:00:45]} Ka6 {[%emt 0:00:04]} 45. Rg7 {[%emt 0:00:08]} Kb6 {[%emt 0:00:11]} 46. c4 {[%emt 0:00:31]} Rh1 {[%emt 0:00:08]} 47. Rg6+ {[%emt 0:00:09]} Kb7 {[%emt 0:00:04]} 48. Ka4 {[%emt 0:00:08]} Rh5 {[%emt 0:00:08]} 49. Rg7+ {[%emt 0:00:25]} Kc6 {[%emt 0:00:18]} 50. Rg6+ {[%emt 0:01:12]} Kb7 {[%emt 0:00:05]} 51. c5 {[%emt 0:00:18]} Rh4 {[%emt 0:00:10]} 52. Ka5 {[%emt 0:00:45]} Rh7 {[%emt 0:00:27]} 53. b5 {[%emt 0:01:22]} Kb8 {[%emt 0:00:06]} 54. c6 {[%emt 0:03:51]} Ra7+ {[%emt 0:00:03]} 55. Kb6 {[%emt 0:00:14]} Rb7+ {[%emt 0:00:03]} 56. Kc5 {[%emt 0:00:06]} Rh7 {[%emt 0:00:38]} 57. Rg8+ {[%emt 0:00:07]} 1-0

[Event "WJCC U20 Open 2019"]
[Site "New Delhi"]
[Date "2019.10.21"]
[Round "7.33"]
[White "Nitish Belurkar"]
[Black "Rakesh Kumar Jena"]
[Result "1-0"]
[ECO "B68"]
[WhiteElo "2311"]
[BlackElo "2355"]
[Annotator "NA"]
[PlyCount "77"]
[EventDate "2019.10.15"]
[EventType "swiss"]
[EventCountry "IND"]
[SourceTitle "playchess.com"]
[Source "ChessBase"]
[SourceQuality "1"]
[TimeControl "40/5400+30:1800+30"]

1. e4 {[%emt 0:00:00]} c5 {[%emt 0:00:00]} 2. Nf3 {[%emt 0:00:00]} Nc6 {[%emt 0:00:10]} 3. d4 {[%emt 0:00:07]} cxd4 {[%emt 0:00:06]} 4. Nxd4 {[%emt 0:00:03]} Nf6 {[%emt 0:00:05]} 5. Nc3 {[%emt 0:00:07]} d6 {[%emt 0:00:05]} 6. Bg5 {[%emt 0:02:12]} e6 {[%emt 0:00:12]} 7. Qd2 {[%emt 0:00:34]} Be7 {[%emt 0:00:28]} 8. O-O-O {[%emt 0:00:58]} a6 {[%emt 0:00:19]} 9. f4 {[%emt 0:00:35]} Bd7 {[%emt 0:00:34]} 10. Nf3 {[%emt 0:00:35]} b5 {[%emt 0:00:22]} 11. Bd3 {[%emt 0:01:04]} h6 {[%emt 0:16:42]} 12. Bxf6 {[%emt 0:03:06]} gxf6 {[%emt 0:00:37]} 13. Kb1 {[%emt 0:06:39]} Qb6 {[%emt 0:03:43]} 14. f5 {[%emt 0:11:28]} O-O-O {[%emt 0:01:53]} 15. Ne2 {[%emt 0:05:43]} Kb8 {[%emt 0:09:53]} 16. Nf4 {[%emt 0:07:09]} Ne5 17. h4 {[%emt 0:07:48]} Rhg8 {[%emt 0:07:16]} 18. h5 {[%emt 0:04:43]} Rg3 {[%emt 0:33:51]} 19. fxe6 {[%emt 0:14:29]} fxe6 {[%emt 0:00:34]} 20. Be2 {[%emt 0:02:01]} Bc8 {[%emt 0:19:59]} 21. Qe1 {[%emt 0:05:49]} Rg7 {[%emt 0:00:26]} 22. Nd4 {[%emt 0:00:55]} d5 {[%emt 0:00:33]} 23. exd5 {[%emt 0:00:24]} exd5 {[%emt 0:00:02]} 24. Bf3 {[%emt 0:07:48]} Bc5 {[%emt 0:01:05]} 25. Nb3 {[%emt 0:00:50]} Nxf3 {[%emt 0:01:08]} 26. gxf3 {[%emt 0:00:05]} Bf2 {[%emt 0:00:40]} 27. Qf1 {[%emt 0:01:56]} Bb7 {[%emt 0:01:34]} 28. Ne6 {[%emt 0:00:58]} Qxe6 {[%emt 0:00:05]} 29. Qxf2 {[%emt 0:00:03]} Qd6 {[%emt 0:00:37]} 30. Nd4 {[%emt 0:00:22]} Rg5 {[%emt 0:01:19]} 31. f4 {[%emt 0:09:40]} Rg4 {[%emt 0:00:28]} 32. f5 {[%emt 0:00:18]} Rdg8 {[%emt 0:00:18]} 33. Qd2 {[%emt 0:01:14]} Qf4 {[%emt 0:00:39]} 34. Qa5 {[%emt 0:01:10]} Qe5 {[%emt 0:00:28]} 35. Qb6 {[%emt 0:00:53]} Rc8 {[%emt 0:00:38]} 36. Rhe1 {[%emt 0:00:14]} Re4 {[%emt 0:00:08]} 37. Rg1 {[%emt 0:00:07]} Qe7 {[%emt 0:00:54]} 38. Rg8 {[%emt 0:02:18]} Qf7 {[%emt 0:00:36]} 39. Nc6+ {[%emt 0:00:06]} 1-0

[Event "WJCC U20 Open 2019"]
[Site "New Delhi"]
[Date "2019.10.21"]
[Round "7.35"]
[White "Jablonicky, Martin"]
[Black "Licheli, Luka"]
[Result "1/2-1/2"]
[ECO "A05"]
[WhiteElo "2333"]
[BlackElo "2010"]
[Annotator "NA"]
[PlyCount "137"]
[EventDate "2019.10.15"]
[EventType "swiss"]
[EventCountry "IND"]
[SourceTitle "playchess.com"]
[Source "ChessBase"]
[SourceQuality "1"]
[TimeControl "40/5400+30:1800+30"]

1. Nf3 Nf6 2. g3 b6 3. Bg2 Bb7 4. O-O g6 5. c4 Bg7 6. Nc3 O-O 7. d3 d5 8. Bd2 dxc4 9. dxc4 Ne4 10. Nxe4 Bxe4 11. Qc1 c5 12. Rd1 Nc6 13. Bh6 Qc7 14. Bxg7 Kxg7 15. Qe3 Bxf3 16. Bxf3 Rad8 17. Bxc6 Qxc6 18. Qxe7 Rde8 19. Qd7 Qxd7 20. Rxd7 Rxe2 21. b3 Ra8 22. Kf1 Rb2 23. Re1 a5 24. Ree7 Rf8 25. Rb7 Rxa2 26. Rxb6 a4 27. Rc7 Rb2 28. Rbb7 Rxb3 29. Ra7 a3 30. Rxc5 Rc3 31. Rcc7 h5 32. Kg2 g5 33. h3 Kg6 34. Rc6+ f6 35. Rcc7 Rg8 36. g4 hxg4 37. hxg4 Rd3 38. c5 Rc3 39. Rab7 a2 40. Ra7 Rc2 41. Kf3 Rb2 42. Ke3 Rb3+ 43. Kd4 Rb2 44. f3 Rf2 45. c6 f5 46. Rd7 Rd2+ 47. Kc5 Rc2+ 48. Kb6 fxg4 49. fxg4 Rb2+ 50. Kc7 Rg7 51. Rxg7+ Kxg7 52. Kc8+ Kf6 53. Ra5 Rc2 54. c7 Kg6 55. Kd7 Rd2+ 56. Ke7 Rc2 57. Ra6+ Kg7 58. Kd8 Rd2+ 59. Kc8 Rb2 60. Ra7 Kg6 61. Kd8 Rd2+ 62. Ke7 Rc2 63. Ra6+ Kg7 64. Kd6 Rd2+ 65. Ke5 Rc2 66. Rxa2 Rxc7 67. Kf5 Rc5+ 68. Ke4 Rc4+ 69. Kf3 1/2-1/2

[Event "WJCC U20 Open 2019"]
[Site "New Delhi"]
[Date "2019.10.21"]
[Round "7.36"]
[White "Sterck, Arno"]
[Black "Winkelman, Albert"]
[Result "0-1"]
[ECO "B21"]
[WhiteElo "2331"]
[BlackElo "2143"]
[Annotator "NA"]
[PlyCount "68"]
[EventDate "2019.10.15"]
[EventType "swiss"]
[EventCountry "IND"]
[SourceTitle "playchess.com"]
[Source "ChessBase"]
[SourceQuality "1"]
[TimeControl "40/5400+30:1800+30"]

1. e4 {[%emt 0:00:00]} c5 {[%emt 0:00:00]} 2. d4 {[%emt 0:00:30]} cxd4 {[%emt 0:00:00]} 3. c3 {[%emt 0:00:03]} dxc3 {[%emt 0:00:22]} 4. Nxc3 {[%emt 0:00:05]} Nc6 {[%emt 0:02:30]} 5. Nf3 {[%emt 0:00:08]} d6 {[%emt 0:02:48]} 6. Bc4 {[%emt 0:00:08]} e6 {[%emt 0:01:31]} 7. O-O {[%emt 0:00:09]} Be7 {[%emt 0:01:38]} 8. Qe2 {[%emt 0:00:14]} Nf6 {[%emt 0:00:53]} 9. Rd1 {[%emt 0:00:08]} Qc7 {[%emt 0:27:13]} 10. Nb5 {[%emt 0:07:54]} Qb8 {[%emt 0:00:21]} 11. Bf4 {[%emt 0:00:27]} Ne5 {[%emt 0:10:39]} 12. Nxd6+ {[%emt 0:51:05]} Bxd6 {[%emt 0:00:14]} 13. Rxd6 {[%emt 0:00:03]} Qxd6 {[%emt 0:00:10]} 14. Nxe5 {[%emt 0:00:06]} Qd4 {[%emt 0:17:14]} 15. Bb5+ {[%emt 0:02:03]} Ke7 {[%emt 0:00:12]} 16. Rd1 {[%emt 0:03:05]} Qxe4 {[%emt 0:00:29]} 17. Bd2 {[%emt 0:06:56]} a5 {[%emt 0:02:45]} 18. Bxa5 {[%emt 0:01:32]} Rxa5 {[%emt 0:00:12]} 19. Qd2 {[%emt 0:00:06]} Nd5 {[%emt 0:00:15]} 20. Qg5+ {[%emt 0:01:10]} Kd6 {[%emt 0:15:55]} 21. Nc4+ {[%emt 0:08:29]} Kc7 {[%emt 0:00:12]} 22. Nxa5 {[%emt 0:00:08]} Qb4 {[%emt 0:02:30]} 23. Qxg7 {[%emt 0:12:36]} Rd8 {[%emt 0:00:15]} 24. Qxf7+ {[%emt 0:04:01]} Kb8 {[%emt 0:00:06]} 25. Nc6+ {[%emt 0:00:48]} bxc6 {[%emt 0:00:16]} 26. Bxc6 {[%emt 0:00:05]} Ne7 {[%emt 0:01:17]} 27. Rc1 {[%emt 0:00:57]} Qd2 {[%emt 0:01:02]} 28. Rf1 {[%emt 0:00:28]} Nxc6 {[%emt 0:00:07]} 29. Qxh7 {[%emt 0:00:04]} Ba6 {[%emt 0:00:20]} 30. Qe4 {[%emt 0:00:49]} Bxf1 {[%emt 0:01:46]} 31. Qxc6 {[%emt 0:00:03]} Ba6 {[%emt 0:00:10]} 32. h4 {[%emt 0:00:58]} Qe1+ {[%emt 0:00:37]} 33. Kh2 {[%emt 0:00:04]} Qe5+ {[%emt 0:00:10]} 34. g3 {[%emt 0:00:03]} Bb7 {[%emt 0:00:07]} 0-1

[Event "WJCC U20 Open 2019"]
[Site "New Delhi"]
[Date "2019.10.21"]
[Round "7.38"]
[White "Li, William"]
[Black "Muradli, Mahammad"]
[Result "0-1"]
[ECO "E04"]
[WhiteElo "2161"]
[BlackElo "2459"]
[Annotator "ChessBase"]
[PlyCount "128"]
[EventDate "2019.10.15"]
[EventType "swiss"]
[EventCountry "IND"]
[SourceTitle "playchess.com"]
[Source "ChessBase"]
[SourceQuality "1"]
[TimeControl "40/5400+30:1800+30"]

1. d4 Nf6 2. c4 e6 3. Nf3 d5 4. g3 dxc4 5. Bg2 Bb4+ 6. Bd2 a5 7. Na3 Bxa3 8. bxa3 b5 9. Ne5 Nd5 10. e4 Nb6 11. d5 O-O 12. Be3 f6 13. Nc6 Nxc6 14. dxc6 Na4 15. e5 Nb2 16. Qxd8 Rxd8 17. O-O Ba6 18. Rab1 c3 19. exf6 gxf6 20. Rfc1 b4 21. Bf1 Bxf1 22. Kxf1 Rdb8 23. Ke2 Nc4 24. axb4 axb4 25. Kd3 Nb2+ 26. Kc2 Rxa2 27. Ra1 Rxa1 28. Rxa1 Nc4 29. Kb3 Nxe3 30. fxe3 Rb6 31. Rd1 Rxc6 32. Kxb4 c2 33. Rc1 Kg7 34. Kb5 Rc3 35. Kb4 Rxe3 36. Rxc2 Kg6 37. Kc4 h5 38. Kd4 Ra3 39. Ke4 h4 40. Kf4 hxg3 41. hxg3 Ra4+ 42. Kf3 Ra7 43. Ke4 Ra3 44. Kf4 e5+ 45. Kg4 f5+ 46. Kh4 Ra4+ 47. Kh3 Ra7 48. Rc6+ Kg5 49. Kg2 Ra2+ 50. Kf3 e4+ 51. Ke3 Rg2 52. Rxc7 Rxg3+ 53. Kf2 Ra3 54. Rh7 Kg4 55. Rg7+ Kf4 56. Rf7 Ra2+ 57. Kf1 Kg4 58. Ke1 f4 59. Rh7 e3 60. Kf1 Kf3 61. Rh3+ Kg4 62. Rh8 f3 63. Rg8+ Kh5 64. Rh8+ Kg6 0-1

[Event "WJCC U20 Open 2019"]
[Site "New Delhi"]
[Date "2019.10.21"]
[Round "7.39"]
[White "Muthaiah AL"]
[Black "Cansun, Can Alp"]
[Result "1-0"]
[ECO "E21"]
[WhiteElo "2370"]
[BlackElo "2199"]
[Annotator "NA"]
[PlyCount "90"]
[EventDate "2019.10.15"]
[EventType "swiss"]
[EventCountry "IND"]
[SourceTitle "playchess.com"]
[Source "ChessBase"]
[SourceQuality "1"]
[TimeControl "40/5400+30:1800+30"]

1. d4 {[%emt 0:00:00]} Nf6 {[%emt 0:00:00]} 2. c4 {[%emt 0:00:04]} e6 {[%emt 0:00:00]} 3. Nf3 {[%emt 0:00:17]} b6 {[%emt 0:00:00]} 4. Nc3 {[%emt 0:01:42]} Bb4 {[%emt 0:00:36]} 5. Bd2 {[%emt 0:00:23]} Bb7 {[%emt 0:00:07]} 6. e3 {[%emt 0:00:49]} O-O {[%emt 0:00:51]} 7. Be2 {[%emt 0:00:55]} Bxc3 {[%emt 0:01:59]} 8. Bxc3 {[%emt 0:00:28]} Ne4 {[%emt 0:00:26]} 9. Rc1 {[%emt 0:01:36]} d6 {[%emt 0:02:55]} 10. O-O {[%emt 0:02:04]} f5 {[%emt 0:02:31]} 11. Be1 {[%emt 0:10:26]} Nd7 {[%emt 0:03:52]} 12. Nd2 {[%emt 0:04:31]} Qg5 {[%emt 0:06:08]} 13. d5 {[%emt 0:06:30]} e5 {[%emt 0:07:08]} 14. f4 {[%emt 0:04:22]} Qe7 {[%emt 0:06:38]} 15. Nxe4 {[%emt 0:04:44]} fxe4 {[%emt 0:00:04]} 16. b4 {[%emt 0:01:20]} exf4 {[%emt 0:07:44]} 17. exf4 {[%emt 0:02:12]} Nf6 {[%emt 0:04:50]} 18. Bc3 {[%emt 0:03:16]} Bc8 {[%emt 0:19:33]} 19. Bd4 {[%emt 0:09:24]} a5 {[%emt 0:11:47]} 20. b5 {[%emt 0:01:41]} Nd7 {[%emt 0:05:37]} 21. Rc3 {[%emt 0:00:54]} Nf6 {[%emt 0:04:34]} 22. Re3 {[%emt 0:03:47]} Bd7 {[%emt 0:00:49]} 23. g4 {[%emt 0:01:24]} Rf7 {[%emt 0:03:43]} 24. g5 {[%emt 0:03:12]} Ne8 {[%emt 0:01:00]} 25. Bg4 {[%emt 0:01:55]} g6 {[%emt 0:03:01]} 26. Be6 {[%emt 0:09:36]} Bxe6 {[%emt 0:00:55]} 27. Rxe4 {[%emt 0:00:01]} Bg4 {[%emt 0:00:33]} 28. Rxe7 {[%emt 0:00:32]} Bxd1 {[%emt 0:00:09]} 29. Rxf7 {[%emt 0:00:09]} Kxf7 {[%emt 0:01:27]} 30. Rxd1 {[%emt 0:00:07]} Ng7 {[%emt 0:00:39]} 31. Bxg7 {[%emt 0:00:53]} Kxg7 {[%emt 0:00:02]} 32. Re1 {[%emt 0:00:21]} Kf7 {[%emt 0:01:01]} 33. Kg2 {[%emt 0:00:46]} Re8 {[%emt 0:02:52]} 34. Rxe8 {[%emt 0:00:37]} Kxe8 {[%emt 0:00:02]} 35. Kg3 {[%emt 0:00:42]} Kf7 {[%emt 0:00:06]} 36. Kg4 {[%emt 0:00:13]} Kg7 {[%emt 0:00:59]} 37. f5 {[%emt 0:00:12]} Kf7 {[%emt 0:00:06]} 38. h4 {[%emt 0:00:07]} Kg7 {[%emt 0:00:33]} 39. h5 {[%emt 0:00:16]} a4 {[%emt 0:00:59]} 40. a3 {[%emt 0:00:32]} Kf7 {[%emt 0:00:26]} 41. fxg6+ {[%emt 0:30:41]} hxg6 {[%emt 0:30:08]} 42. hxg6+ {[%emt 0:00:06]} Kxg6 {[%emt 0:00:29]} 43. Kf4 {[%emt 0:00:08]} Kg7 {[%emt 0:00:05]} 44. Kf5 {[%emt 0:00:09]} Kf7 {[%emt 0:00:04]} 45. g6+ {[%emt 0:00:10]} Ke7 {[%emt 0:00:05]} 1-0

[Event "WJCC U20 Open 2019"]
[Site "New Delhi"]
[Date "2019.10.21"]
[Round "7.40"]
[White "De Silva, L M S T"]
[Black "Raahul V S"]
[Result "0-1"]
[ECO "C50"]
[WhiteElo "1879"]
[BlackElo "2262"]
[Annotator "NA"]
[PlyCount "82"]
[EventDate "2019.10.15"]
[EventType "swiss"]
[EventCountry "IND"]
[SourceTitle "playchess.com"]
[Source "ChessBase"]
[SourceQuality "1"]
[TimeControl "40/5400+30:1800+30"]

1. e4 e5 2. Nf3 Nc6 3. Bc4 Nf6 4. d3 Bc5 5. O-O O-O 6. c3 d6 7. Bb3 a5 8. Nbd2 b5 9. Re1 a4 10. Bc2 Ng4 11. Re2 f5 12. h3 Nf6 13. Nf1 fxe4 14. dxe4 Qe8 15. Be3 Bxe3 16. Rxe3 Ne7 17. b3 Nh5 18. c4 bxc4 19. bxc4 Qg6 20. Kh2 Nf4 21. Ng3 Qh6 22. Kg1 g5 23. Nh2 Bxh3 24. Ng4 Bxg4 25. Qxg4 Nc6 26. Nf5 Qh5 27. Qg3 Kh8 28. Bd1 Qg6 29. Qh2 Nd4 30. g3 Nfe6 31. Rc1 g4 32. Nxd4 exd4 33. Rd3 Qxe4 34. Bc2 Ng5 35. Ra3 Qe2 36. Bd3 Nh3+ 37. Kh1 Nxf2+ 38. Kg1 Nh3+ 39. Kh1 Qf3+ 40. Qg2 Nf2+ 41. Kh2 Nxd3 0-1